fUSD/lending_fUSD_20250113
["ID","MTS","AMOUNT","RATE_DAILY","PERIOD"]
[348815461,1736790689695,-167.723371,0.00019519,2]
[348815462,1736790689705,-167.723371,0.00019519,2]
[348815463,1736790689716,-167.723371,0.00019519,2]
[348815464,1736790689727,-167.723371,0.00019519,2]
[348815465,1736790689738,-403.782299,0.00019519,2]
[348815466,1736790689748,-403.782299,0.00019519,2]
[348815467,1736790689758,-403.782299,0.00019519,2]
[348815468,1736790689768,-403.782299,0.00019519,2]
[348815469,1736790689779,-174.267797,0.00019519,2]
[348815470,1736790689789,-174.267797,0.00019519,2]
[348815471,1736790689799,-151.0,0.00019519,2]
[348815472,1736790689809,-890.637031,0.00019519,2]
[348815473,1736790689820,-890.637031,0.00019519,2]
[348815474,1736790689831,-151.795266,0.00019519,2]
[348815475,1736790689841,-151.795266,0.00019519,2]
[348815476,1736790689851,-151.0,0.00019519,2]
[348815477,1736790689862,-151.0,0.00019519,2]
[348815478,1736790689873,-157.950119,0.00019519,2]
[348815479,1736790689883,-157.950119,0.00019519,2]
[348815480,1736790689894,-1289.52314116,0.00019524,2]
[348815481,1736790689904,-3352.927486,0.00019545,2]
[348815482,1736790689915,-3352.927486,0.00019545,2]
[348815483,1736790689926,-176.479953,0.00019545,2]
[348815484,1736790689937,-3352.927486,0.00019545,2]
[348815485,1736790689948,-176.479953,0.00019545,2]
[348815486,1736790689959,-3352.927486,0.00019545,2]
[348815487,1736790689969,-176.479953,0.00019545,2]
[348815488,1736790689980,-176.479953,0.00019545,2]
[348815489,1736790689993,-151.0,0.00019545,2]
[348815490,1736790690004,-151.0,0.00019545,2]
[348815491,1736790690015,-151.0,0.00019545,2]
[348815492,1736790690025,-151.0,0.00019545,2]
[348815493,1736790690036,-151.0,0.00019545,2]
[348815494,1736790690046,-151.0,0.00019545,2]
[348815495,1736790690058,-151.0,0.00019545,2]
[348815496,1736790690068,-151.0,0.00019545,2]
[348815497,1736790690079,-151.0,0.00019545,2]
[348815498,1736790690090,-195.072788,0.00019545,2]
[348815499,1736790690100,-151.0,0.00019545,2]
[348815500,1736790690111,-500.0,0.00019545,2]
[348815501,1736790690121,-500.0,0.00019545,2]
[348815502,1736790690131,-266.694664,0.00019545,2]
[348815503,1736790690143,-266.694664,0.00019545,2]
[348815504,1736790690154,-500.0,0.00019545,2]
[348815505,1736790690166,-500.0,0.00019545,2]
[348815506,1736790690177,-266.694664,0.00019545,2]
[348815507,1736790690189,-266.694664,0.00019545,2]
[348815508,1736790690202,-257.714356,0.00019545,2]
[348815509,1736790690361,-257.714356,0.00019545,2]
[348815510,1736790690397,-257.714356,0.00019545,2]
[348815511,1736790690414,-257.714356,0.00019545,2]
[348815512,1736790690423,-166.796717,0.00019545,2]
[348815513,1736790690433,-166.796717,0.00019545,2]
[348815514,1736790690442,-166.796717,0.00019545,2]
[348815515,1736790690452,-166.796717,0.00019545,2]
[348815516,1736790690462,-151.0,0.00019545,2]
[348815517,1736790690472,-151.0,0.00019545,2]
[348815518,1736790690485,-151.0,0.00019545,2]
[348815519,1736790690494,-151.0,0.00019545,2]
[348815520,1736790690504,-189.163443,0.00019545,2]
[348815521,1736790690514,-189.163443,0.00019545,2]
[348815522,1736790690524,-189.163443,0.00019545,2]
[348815523,1736790690534,-189.163443,0.00019545,2]
[348815524,1736790690545,-414.81126,0.00019545,2]
[348815525,1736790690555,-414.81126,0.00019545,2]
[348815526,1736790690566,-414.81126,0.00019545,2]
[348815527,1736790690576,-414.81126,0.00019545,2]
[348815528,1736790690586,-151.0,0.00019545,2]
[348815529,1736790690597,-151.0,0.00019545,2]
[348815530,1736790690607,-151.0,0.00019545,2]
[348815531,1736790690616,-151.0,0.00019545,2]
[348815532,1736790690628,-151.0,0.00019545,2]
[348815533,1736790690641,-151.0,0.00019545,2]
[348815534,1736790690651,-285.512409,0.0001955,2]
[348815535,1736790690661,-285.512409,0.0001955,2]
[348815536,1736790690671,-246.238241,0.0001955,2]
[348815537,1736790690681,-246.238241,0.0001955,2]
[348815538,1736790690692,-425.261675,0.00019551,2]
[348815539,1736790690702,-425.261675,0.00019551,2]
[348815540,1736790690713,-477.420922,0.00019553,2]
[348815541,1736790690725,-477.420922,0.00019553,2]
[348815542,1736790690735,-193.640873,0.00019553,2]
[348815543,1736790690745,-193.640873,0.00019553,2]
[348815544,1736790690755,-532.72992891,0.00019556,2]
[348815545,1736790690765,-901.81885694,0.00019556,2]
[348815546,1736790690777,-476.06829433,0.00019556,2]
[348815547,1736790690786,-1567.89453134,0.00019556,2]
[348815548,1736790690797,-541.29943279,0.00019556,2]
[348815549,1736790690807,-360.42234184,0.00019556,2]
[348815550,1736790690818,-2179.04197555,0.00019556,2]
[348815551,1736790690827,-280.29069151,0.00019556,2]
[348815552,1736790690837,-1814.6289475,0.00019556,2]
[348815553,1736790690847,-217.65471996,0.00019556,2]
[348815554,1736790690858,-1555.42854631,0.00019556,2]
[348815555,1736790690868,-200.2717569,0.00019556,2]
[348815556,1736790690878,-97984.17734297,0.00019556,2]
[348815557,1736790691099,-823.375,0.00019556,2]
[348815558,1736790691112,-113945.97861602,0.00019556,2]
[348815559,1736790691122,-1464.84029495,0.00019556,2]
[348815560,1736790691133,-3001.07494666,0.00019556,2]
[348815561,1736790691143,-9525.11753633,0.00019556,2]
[348815562,1736790691153,-7002.28664774,0.00019556,2]
[348815563,1736790691163,-14767.51447176,0.00019556,2]
[348815564,1736790691173,-18326.3004569,0.00019556,2]
[348815565,1736790691183,-6000.0,0.00019556,2]
[348815566,1736790691193,-5117.10532256,0.00019556,4]
[348815567,1736790691204,-13893.87483092,0.00019556,2]
[348815568,1736790691215,-162.91,0.00019556,2]
[348815569,1736790691225,-162251.52029074,0.00019556,2]
[348815570,1736790691235,-397487.34232507,0.00019556,2]
[348815571,1736790691245,-1000.0,0.00019556,4]
[348815572,1736790691255,-4248.30747293,0.00019556,4]
[348815573,1736790691265,-150.0,0.00019556,2]
[348815574,1736790691276,-1104.48831259,0.00019556,2]
[348815575,1736790691286,-50332.88,0.00019556,2]
[348815576,1736790691297,-10073.15307467,0.00019556,2]
[348815577,1736790691307,-372.55296381,0.00019556,2]
[348815578,1736790691318,-4042.45817444,0.00019556,2]
[348815579,1736790691328,-591.16069639,0.00019556,2]
[348815580,1736790691338,-4427.15019046,0.00019556,2]
[348815581,1736790691349,-168.2934962,0.00019556,2]
[348815582,1736790691359,-199280.29094942,0.00019556,2]
[348815583,1736790691369,-10463.7757511,0.00019556,3]
[348815584,1736790691379,-1210.0,0.00019556,2]
[348815585,1736790691389,-694.47944091,0.00019556,2]
[348815586,1736790691399,-343.91911606,0.00019556,2]
[348815587,1736790691409,-752.05565379,0.00019556,2]
[348815588,1736790691419,-1501.61106703,0.00019556,2]
[348815589,1736790691428,-1016.60553169,0.00019556,2]
[348815590,1736790691439,-5118.80517724,0.00019556,2]
[348815591,1736790691449,-2424.35446976,0.00019556,2]
[348815592,1736790691459,-162.33709532,0.00019556,2]
[348815593,1736790691469,-1246.03825691,0.00019556,2]
[348815594,1736790691479,-7623.34447677,0.00019556,2]
[348815595,1736790691492,-1028.50885402,0.00019556,2]
[348815596,1736790691502,-587.40402319,0.00019556,2]
[348815597,1736790691512,-9124.25362708,0.00019556,2]
[348815598,1736790691522,-1295.31379077,0.00019556,2]
[348815599,1736790691532,-3378.48159348,0.00019556,2]
[348815600,1736790691542,-12678.12533368,0.00019556,2]
[348815601,1736790691552,-1897.99270395,0.00019556,2]
[348815602,1736790691562,-181.82176905,0.00019556,2]
[348815603,1736790691573,-14664.5154615,0.00019556,3]
[348815604,1736790691583,-643.0,0.00019556,2]
[348815605,1736790691593,-958.46821566,0.00019556,2]
[348815606,1736790691603,-566.10534419,0.00019556,2]
[348815607,1736790691614,-1815.28284979,0.00019556,2]
[348815608,1736790691625,-3205.37618753,0.00019556,2]
[348815609,1736790691639,-173.32363027,0.00019556,2]
[348815610,1736790691649,-1449.24329251,0.00019556,2]
[348815611,1736790691660,-550.0,0.00019556,2]
[348815612,1736790691671,-996.22119737,0.00019556,2]
[348815613,1736790691681,-943.43450089,0.00019556,2]
[348815614,1736790691691,-10579.62841778,0.00019556,2]
[348815615,1736790691701,-167695.54148085,0.00019556,2]
[348815616,1736790691711,-226.20293957,0.00019556,2]
[348815617,1736790691720,-171.66964896,0.00019556,2]
[348815618,1736790691730,-1264.06625625,0.00019556,4]
[348815619,1736790691742,-1452.90491252,0.00019556,2]
[348815620,1736790691752,-1021.0634816,0.00019556,2]
[348815621,1736790691762,-556.53723754,0.00019556,2]
[348815622,1736790691773,-150.0,0.00019556,2]
[348815623,1736790691784,-112079.79698511,0.00019556,4]
[348815624,1736790691794,-618.94599135,0.00019556,2]
[348815625,1736790691804,-212.1790137,0.00019556,2]
[348815626,1736790691813,-444.49260225,0.00019556,2]
[348815627,1736790691824,-1054.82312971,0.00019556,2]
[348815628,1736790691833,-21029.07802699,0.00019556,2]
[348815629,1736790691842,-41423.1576852,0.00019556,2]
[348815630,1736790691856,-4949.53848645,0.00019556,2]
[348815631,1736790691866,-14592.34775588,0.00019556,2]
[348815632,1736790691877,-6672.70379488,0.00019556,4]
[348815633,1736790691888,-279.21501612,0.00019556,2]
[348815634,1736790691898,-1000.61991203,0.00019556,2]
[348815635,1736790691908,-1095.0,0.00019556,2]
[348815636,1736790691918,-5137.17693043,0.00019556,2]
[348815637,1736790691928,-5010.23169589,0.00019556,2]
[348815638,1736790691938,-5413.59354013,0.00019556,2]
[348815639,1736790691949,-109567.45022518,0.00019556,2]
[348815640,1736790691960,-103318.55577831,0.00019556,2]
[348815641,1736790691970,-4790.88385826,0.00019556,2]
[348815642,1736790691980,-938.16309852,0.00019556,2]
[348815643,1736790691991,-1000.0,0.00019556,2]
[348815644,1736790692001,-1934.44122052,0.00019556,2]
[348815645,1736790692010,-19260.26068795,0.00019556,2]
[348815646,1736790692021,-553.54613404,0.00019556,5]
[348815647,1736790692031,-1956.02692885,0.00019556,5]
[348815648,1736790692041,-609.57036481,0.00019556,6]
[348815649,1736790692053,-521.83215914,0.00019556,7]
[348815650,1736790692064,-962.01599653,0.00019556,5]
[348815651,1736790692074,-859.65360013,0.00019556,5]
[348815652,1736790692084,-583.10486273,0.00019556,5]
[348815653,1736790692094,-1018.61644254,0.00019556,7]
[348815654,1736790692104,-456.2676703,0.00019556,7]
[348815655,1736790692115,-215.44575735,0.00019556,5]
[348815656,1736790692125,-500.0,0.00019556,7]
[348815657,1736790692135,-213.54813545,0.00019556,7]
[348815658,1736790692145,-1019.35575966,0.00019556,2]
[348815659,1736790692154,-3802.82083696,0.00019556,7]
[348815660,1736790692164,-576.19979285,0.00019556,2]
[348815661,1736790692175,-7680.87131296,0.00019556,2]
[348815662,1736790692184,-246.03841103,0.00019556,2]
[348815663,1736790692195,-279.0,0.00019556,2]
[348815664,1736790692205,-1000.0,0.00019556,30]
[348815665,1736790692216,-1000.0,0.00019556,60]
[348815666,1736790692226,-1000.0,0.00019556,30]
[348815667,1736790692238,-1000.0,0.00019556,30]
[348815668,1736790692249,-1000.0,0.00019556,30]
[348815669,1736790692259,-1000.0,0.00019556,120]
[348815670,1736790692270,-1013.20831212,0.00019556,30]
[348815671,1736790692280,-1000.0,0.00019556,30]
[348815672,1736790692291,-1646.60006229,0.00019556,60]
[348815673,1736790692301,-1015.38,0.00019556,30]
[348815674,1736790692311,-202.8,0.00019556,30]
[348815675,1736790692321,-1038.6362987,0.00019556,90]
[348815676,1736790692335,-1467.75603585,0.00019556,10]
[348815677,1736790692345,-503.09224375,0.00019556,30]
[348815678,1736790692356,-999.999993,0.00019556,120]
[348815679,1736790692366,-375.99878715,0.00019556,30]
[348815680,1736790692376,-862.51330073,0.00019556,30]
[348815681,1736790692386,-1000.0,0.00019556,30]
[348815682,1736790692396,-742.4564611,0.00019556,120]
[348815683,1736790692406,-187.9553476,0.00019556,120]
[348815684,1736790692415,-2184.67366904,0.00019556,120]
[348815685,1736790692425,-1979.80393444,0.00019556,30]
[348815686,1736790692434,-727.83523073,0.00019556,30]
[348815687,1736790692445,-693.67997789,0.00019556,10]
[348815688,1736790692455,-920.05391225,0.00019556,30]
[348815689,1736790692465,-340.77012768,0.00019556,30]
[348815690,1736790692474,-1007.81950099,0.00019556,15]
[348815691,1736790692484,-941.28877054,0.00019556,20]
[348815692,1736790692494,-261.09229759,0.00019556,30]
[348815693,1736790692504,-844.8410202,0.00019556,30]
[348815694,1736790692513,-300.0,0.00019556,15]
[348815695,1736790692523,-852.92151581,0.00019556,30]
[348815696,1736790692532,-918.71682791,0.00019556,30]
[348815697,1736790692542,-211.16397336,0.00019556,120]
[348815698,1736790692552,-260.85788477,0.00019556,60]
[348815699,1736790692562,-205.62789901,0.00019556,30]
[348815700,1736790692571,-949.11668847,0.00019556,30]
[348815701,1736790692581,-183.34276561,0.00019556,120]
[348815702,1736790692591,-1218.53837169,0.00019556,15]
[348815703,1736790692602,-2203.72295278,0.00019556,10]
[348815704,1736790692612,-180.90071131,0.00019556,120]
[348815705,1736790692622,-1309.26583012,0.00019556,120]
[348815706,1736790692635,-154.11584851,0.00019556,120]
[348815707,1736790692704,-346.89915178,0.00019556,30]
[348815708,1736790692715,-1000.0,0.00019556,10]
[348815709,1736790692725,-197.2635996,0.00019556,120]
[348815710,1736790692734,-500.0,0.00019556,10]
[348815711,1736790692745,-409.9953467,0.00019556,120]
[348815712,1736790692756,-1025.2310795,0.00019556,120]
[348815713,1736790692766,-1004.36998169,0.00019556,30]
[348815714,1736790692775,-608.86121963,0.00019556,120]
[348815715,1736790692785,-1030.36934225,0.00019556,120]
[348815716,1736790692794,-270.38790813,0.00019556,120]
[348815717,1736790692804,-873.024053,0.00019556,30]
[348815718,1736790692813,-269.81915164,0.00019556,10]
[348815719,1736790692822,-548.90073642,0.00019556,120]
[348815720,1736790692832,-201.06331448,0.00019556,30]
[348815721,1736790692842,-1434.3376826,0.00019556,120]
[348815722,1736790692851,-595.20580023,0.00019556,60]
[348815723,1736790692861,-704.23982736,0.00019556,30]
[348815724,1736790692870,-263.35349492,0.00019556,30]
[348815725,1736790692879,-376.71500464,0.00019556,45]
[348815726,1736790692890,-1744.52707142,0.00019556,30]
[348815727,1736790692899,-162.91373557,0.00019556,120]
[348815728,1736790692908,-1444.37045053,0.00019556,30]
[348815729,1736790692918,-523.08100542,0.00019556,30]
[348815730,1736790692928,-2287.84816138,0.00019556,120]
[348815731,1736790692937,-1100.30287516,0.00019556,30]
[348815732,1736790692946,-756.0,0.00019556,120]
[348815733,1736790692956,-297.49971465,0.00019556,30]
[348815734,1736790692965,-2167.48895157,0.00019556,30]
[348815735,1736790692975,-1094.47345284,0.00019556,120]
[348815736,1736790692986,-903.16459671,0.00019556,120]
[348815737,1736790692996,-2000.28211301,0.00019556,120]
[348815738,1736790693005,-421.59911751,0.00019556,30]
[348815739,1736790693015,-1679.36489365,0.00019556,120]
[348815740,1736790693024,-358.68597492,0.00019556,11]
[348815741,1736790693034,-155.38963499,0.00019556,120]
[348815742,1736790693044,-1828.83304336,0.00019556,10]
[348815743,1736790693053,-5000.0,0.00019556,120]
[348815744,1736790693063,-1495.29870111,0.00019556,120]
[348815745,1736790693073,-3000.12720923,0.00019556,2]
[348815746,1736790693083,-36142.97108838,0.00019556,30]
[348815747,1736790693092,-3000.6771453,0.00019556,30]
[348815748,1736790693101,-170.0,0.00019556,120]
[348815749,1736790693111,-2294.78679922,0.00019556,30]
[348815750,1736790693120,-2023.0,0.00019556,120]
[348815751,1736790693130,-2328.35239984,0.00019556,120]
[348815752,1736790693139,-3276.30565782,0.00019556,60]
[348815753,1736790693149,-2233.69561873,0.00019556,10]
[348815754,1736790693158,-419.47800967,0.00019556,120]
[348815755,1736790693168,-445.43255541,0.00019556,30]
[348815756,1736790693178,-502.32536082,0.00019556,120]
[348815757,1736790693187,-6712.45297958,0.00019556,120]
[348815758,1736790693197,-1240.97971188,0.00019556,120]
[348815759,1736790693206,-155.79934853,0.00019556,30]
[348815760,1736790693216,-376.90952912,0.00019556,2]
[348815761,1736790693226,-202.8,0.00019556,30]
[348815762,1736790693236,-1881.86573754,0.00019556,30]
[348815763,1736790693247,-1087.57,0.00019556,120]
[348815764,1736790693257,-634.63364745,0.00019556,120]
[348815765,1736790693267,-150.0,0.00019556,30]
[348815766,1736790693276,-202.8,0.00019556,30]
[348815767,1736790693286,-100000.0,0.00019556,15]
[348815768,1736790693296,-179.57153122,0.00019556,7]
[348815769,1736790693306,-2430.27724703,0.00019556,120]
[348815770,1736790693315,-25040.49261779,0.00019556,2]
[348815771,1736790693325,-449.999999,0.00019556,2]
[348815772,1736790693335,-787.23469085,0.00019556,2]
[348815773,1736790693344,-3502.35681302,0.00019556,2]
[348815774,1736790693354,-2500.0,0.00019556,2]
[348815775,1736790693364,-572.67833736,0.00019556,2]
[348815776,1736790693373,-1829.36128663,0.00019556,2]
[348815777,1736790693383,-5322.79693093,0.00019556,2]
[348815778,1736790693393,-2000.0,0.00019556,31]
[348815779,1736790693403,-4744.87264785,0.00019556,120]
[348815780,1736790693412,-2802.50106026,0.00019556,120]
[348815781,1736790693421,-494.45964582,0.00019556,2]
[348815782,1736790693431,-242.793806,0.00019556,30]
[348815783,1736790693440,-159.0,0.00019556,30]
[348815784,1736790693450,-5000.0,0.00019556,2]
[348815785,1736790693460,-151.0,0.00019556,2]
[348815786,1736790693470,-297.750049,0.00019556,2]
[348815787,1736790693480,-267.021583,0.00019556,2]
[348815788,1736790693496,-169.81714333,0.00019588,2]
[348815789,1736790693506,-303.224641,0.00019608,2]
[348815790,1736790693516,-303.224641,0.00019608,2]
[348815791,1736790693526,-303.224641,0.00019608,2]
[348815792,1736790693536,-303.224641,0.00019608,2]
[348815793,1736790693546,-466.707392,0.00019608,2]
[348815794,1736790693556,-466.707392,0.00019608,2]
[348815795,1736790693570,-3280.05225444,0.0001961,2]
[348815796,1736790693580,-258.2669114,0.0001961,5]
[348815797,1736790693590,-252647.46275309,0.0001961,2]
[348815798,1736790693601,-176324.60787858,0.0001961,2]
[348815799,1736790693614,-466.707392,0.0001961,2]
[348815800,1736790693625,-466.707392,0.0001961,2]
[348815801,1736790693638,-839.130736,0.0001961,2]
[348815802,1736790693648,-392.244102,0.0001961,2]
[348815803,1736790693658,-392.244102,0.0001961,2]
[348815804,1736790693669,-174.267797,0.0001961,2]
[348815805,1736790693679,-174.267797,0.0001961,2]
[348815806,1736790693689,-151.0,0.0001961,2]
[348815807,1736790693699,-890.637031,0.0001961,2]
[348815808,1736790693710,-890.637031,0.0001961,2]
[348815809,1736790693721,-151.795266,0.0001961,2]
[348815810,1736790693732,-151.795266,0.0001961,2]
[348815811,1736790693743,-151.0,0.0001961,2]
[348815812,1736790693753,-151.0,0.0001961,2]
[348815813,1736790693763,-157.950119,0.0001961,2]
[348815814,1736790693773,-157.950119,0.0001961,2]
[348815815,1736790693784,-151.0,0.0001961,2]
[348815816,1736790693794,-151.0,0.0001961,2]
[348815817,1736790693804,-151.0,0.0001961,2]
[348815818,1736790693813,-288.616209,0.0001961,2]
[348815819,1736790693823,-755.504186,0.0001961,2]
[348815820,1736790693834,-755.504186,0.0001961,2]
[348815821,1736790693844,-151.0,0.0001961,2]
[348815822,1736790693854,-154.204116,0.0001961,2]
[348815823,1736790693863,-151.0,0.0001961,2]
[348815824,1736790693874,-238.023172,0.0001961,2]
[348815825,1736790693883,-238.023172,0.0001961,2]
[348815826,1736790693893,-1624.675869,0.0001961,2]
[348815827,1736790693903,-1624.675869,0.0001961,2]
[348815828,1736790693912,-175.380717,0.0001961,2]
[348815829,1736790693922,-151.0,0.0001961,2]
[348815830,1736790693931,-175.380717,0.0001961,2]
[348815831,1736790693941,-444.088074,0.0001961,2]
[348815832,1736790693950,-444.088074,0.0001961,2]
[348815833,1736790693960,-5000.0,0.00019633,2]
[348815834,1736790693970,-4890.86,0.00019653,2]
[348815835,1736790693981,-219.8,0.00019658,2]
[348815836,1736790693992,-150.0,0.00019663,2]
[348815837,1736790694001,-791.22,0.00019666,2]
[348815838,1736790694011,-150.0,0.00019683,2]
[348815839,1736790694021,-2359.52,0.00019688,2]
[348815840,1736790694031,-5000.0,0.00019698,2]
[348815841,1736790694041,-150.42744298,0.00019722,2]
[348815842,1736790694051,-999.0,0.00019726,10]
[348815843,1736790694062,-150.0,0.00019764,2]
[348815844,1736790694072,-167.723371,0.00019779,2]
[348815845,1736790694081,-167.723371,0.00019779,2]
[348815846,1736790694090,-403.782299,0.00019779,2]
[348815847,1736790694099,-403.782299,0.00019779,2]
[348815848,1736790694109,-150.0,0.00019786,2]
[348815849,1736790694119,-3593.27943636,0.0001979,20]
[348815850,1736790694128,-5000.0,0.00019797,2]
[348815851,1736790694137,-3411.98022568,0.000198,2]
[348815852,1736790694147,-5000.0,0.00019801,2]
[348815853,1736790694156,-25000.0,0.00019811,2]
[348815854,1736790694166,-2000.0,0.00019825,2]
[348815855,1736790694176,-271.190185,0.0001983,2]
[348815856,1736790694186,-151.0,0.0001983,2]
[348815857,1736790694196,-271.190185,0.0001983,2]
[348815858,1736790694207,-170.220237,0.0001983,2]
[348815859,1736790694217,-151.0,0.0001983,2]
[348815860,1736790694226,-150.0,0.00019835,2]
[348815861,1736790694236,-1500.0,0.00019835,2]
[348815862,1736790694247,-337.26179492,0.0001985,2]
[348815863,1736790694257,-2418.75,0.00019852,2]
[348815864,1736790694267,-150.0,0.00019869,2]
[348815865,1736790694277,-150.0,0.00019887,2]
[348815866,1736790694286,-150.0,0.00019894,2]
[348815867,1736790694296,-154.75,0.00019895,2]
[348815868,1736790694305,-4681.51396041,0.000199,3]
[348815869,1736790694314,-58889.27924937,0.000199,2]
[348815870,1736790694325,-151.0,0.000199,2]
[348815871,1736790694334,-500.0,0.000199,2]
[348815872,1736790694343,-266.694664,0.000199,2]
[348815873,1736790694353,-500.0,0.000199,2]
[348815874,1736790694363,-266.694664,0.000199,2]
[348815875,1736790694373,-257.714356,0.000199,2]
[348815876,1736790694383,-257.714356,0.000199,2]
[348815877,1736790694393,-189.163443,0.000199,2]
[348815878,1736790694403,-189.163443,0.000199,2]
[348815879,1736790694413,-643.451671,0.000199,2]
[348815880,1736790694423,-643.451671,0.000199,2]
[348815881,1736790694433,-151.0,0.000199,2]
[348815882,1736790694444,-2341.405035,0.000199,2]
[348815883,1736790694453,-2341.405035,0.000199,2]
[348815884,1736790694463,-591.876205,0.000199,2]
[348815885,1736790694473,-591.876205,0.000199,2]
[348815886,1736790694483,-256.498636,0.000199,2]
[348815887,1736790694495,-151.0,0.000199,2]
[348815888,1736790694505,-151.0,0.000199,2]
[348815889,1736790694515,-178.21317619,0.000199,2]
[348815890,1736790694525,-178.21317616,0.000199,2]
[348815891,1736790694535,-178.21317616,0.000199,2]
[348815892,1736790694545,-151.0,0.000199,2]
[348815893,1736790694555,-151.0,0.000199,2]
[348815894,1736790694565,-151.0,0.000199,2]
[348815895,1736790694575,-610.692154,0.000199,2]
[348815896,1736790694585,-610.692154,0.000199,2]
[348815897,1736790694595,-2249.114342,0.000199,2]
[348815898,1736790694606,-2249.114342,0.000199,2]
[348815899,1736790694616,-640.923059,0.000199,2]
[348815900,1736790694627,-640.923059,0.000199,2]
[348815901,1736790694640,-432.297875,0.000199,2]
[348815902,1736790694651,-432.297875,0.000199,2]
[348815903,1736790694661,-163.933209,0.000199,2]
[348815904,1736790694672,-163.933209,0.000199,2]
[348815905,1736790694681,-576.981211,0.000199,2]
[348815906,1736790694692,-576.981211,0.000199,2]
[348815907,1736790694702,-10000.0,0.000199,2]
[348815908,1736790694715,-10000.0,0.000199,2]
[348815909,1736790694728,-10000.0,0.000199,2]
[348815910,1736790694749,-10000.0,0.000199,2]
[348815911,1736790694760,-10000.0,0.000199,2]
[348815912,1736790694770,-6140.98206366,0.000199,2]
[348815913,1736790694856,-500.0,9.995e-05,2]
[348815914,1736790694866,-500.0,0.00010269,2]
[348815915,1736790694877,-500.0,0.00010544,2]
[348815916,1736790694887,-462.65,0.000199,2]
[348815917,1736790694898,-1739.8,0.000199,2]
[348815918,1736790695060,-500.0,9.995e-05,2]
[348815919,1736790695071,-500.0,9.995e-05,2]
[348815920,1736790695082,-500.0,0.00010269,2]
[348815921,1736790695092,-500.0,0.00010269,2]
[348815922,1736790695104,-500.0,0.00010543,2]
[348815923,1736790695113,-500.0,0.00010543,2]
[348815924,1736790695124,-500.0,0.00010817,2]
[348815925,1736790695134,-500.0,0.00010817,2]
[348815926,1736790695145,-500.0,0.00011091,2]
[348815927,1736790695156,-232.1,0.00011365,2]
[348815928,1736790695167,-1104.0,0.00012723,2]
[348815929,1736790695179,-500.0,0.00014106,2]
[348815930,1736790695190,-1104.0,0.00015723,2]
[348815931,1736790695201,-591.726,0.00018723,2]
[348815932,1736790695211,-1656.56793634,0.000199,2]
[348815933,1736790695222,-8328.80806366,0.000199,2]
[348815934,1736790695237,-432.0,0.000199,2]
[348815935,1736790695251,-1239.19193634,0.000199,2]
[348815936,1736790695262,-151.0,0.000199,2]
[348815937,1736790695271,-151.0,0.000199,2]
[348815938,1736790695281,-150.0,0.00019903,2]
[348815939,1736790695291,-5000.0,0.00019932,2]
[348815940,1736790695300,-5000.0,0.00019948,2]
[348815941,1736790695310,-1758.55,0.00019965,2]
[348815942,1736790695319,-151.0,0.00019965,2]
[348815943,1736790695331,-151.0,0.00019965,2]
[348815944,1736790695341,-514.0,0.0001997,2]
[348815945,1736790695351,-412.50806366,0.00019972,2]
[348815946,1736790695366,-2137.40193634,0.00019972,2]
[348815947,1736790695377,-240.9790389,0.00019986,2]
[348815948,1736790695389,-1886.2210991,0.00019986,2]
[348815949,1736790695400,-5005.2451889,0.00019986,2]
[348815950,1736790695411,-297.60911094,0.0002,2]
[348815951,1736790695421,-7500.0,0.0002,2]
[348815952,1736790695432,-3823.89479364,0.0002,2]
[348815953,1736790695442,-58538.07665265,0.0002,2]
[348815954,1736790695456,-683.665,0.0002,2]
[348815955,1736790695719,-500.0,9.995e-05,2]
[348815956,1736790695729,-500.0,9.995e-05,2]
[348815957,1736790695741,-500.0,9.995e-05,2]
[348815958,1736790695751,-500.0,9.995e-05,2]
[348815959,1736790695762,-449.999985,9.995e-05,2]
[348815960,1736790695774,-50.000015,9.995e-05,2]